Cogmind - Beta 9.2 @@@ ROGUE MODE // 2019.11.12 @ 21:35:53 Player: fartblaster Result: Destroyed by Y-45 Defender with Heavy Assault Rifle Performance ------------- Evolutions (2) 1000 Regions Visited (3) 600 Robots Destroyed (61) 305 Value Destroyed (1390) 1390 Prototype IDs (0) 0 Alien Tech Used (0) 0 Bonus (33) 33 TOTAL SCORE: 3328 Bonus ------- High Alert Combat Kills 33 Cogmind --------- Core Integrity 0/550 Matter 198/300 Energy 150/150 System Corruption 0% Temperature Cool (-91) Movement Walking (120) Location -8/Materials Parts ------- > --- POWER (3) -------- Light Angular Momentum Engine > --- PROPULSION (4) --- Carbon-fiber Leg > --- UTILITY (2) ------ Cryofiber Web Improved ECM Suite > --- WEAPON (2) ------- (None) > --- INVENTORY (4) ---- Large Matter Pod (111) Peak State ------------ > --- POWER ------------ Light Ion Engine Light Ion Engine Nuclear Core > --- PROPULSION ------- Light Treads Light Treads > --- UTILITY ---------- Improved Heat Sink Small Storage Unit > --- WEAPON ----------- Heavy Laser Minigun > --- INVENTORY -------- Large Matter Pod Mini Grenade Launcher [Rating: 18] Favorites ----------- Power Light Ion Engine Engine Light Ion Engine Power Core Nuclear Core Propulsion Aluminum Leg Treads Improved Treads Leg Aluminum Leg Utility Small Storage Unit Device Terrain Scanner Storage Small Storage Unit Processor Improved Signal Interpreter Weapon Improved Light Cannon Energy Gun EM Pulse Gun Ballistic Gun Assault Rifle Ballistic Cannon Improved Light Cannon Launcher Mini Grenade Launcher Build | -11 -10 -9 -8 ------- Run | Scr Mat Mat Mat Slots Evolved 4 | . . 2 2 Power 2 | . . . 2 Propulsion 2 | . . 2 . Utility . | . . . . Weapon . | . . . . Parts Attached 45 | 6 15 13 11 Power 7 | 1 1 2 3 Engine 6 | 1 1 2 2 Core 1 | . . . 1 Reactor . | . . . . Propulsion 16 | 2 6 6 2 Treads 9 | . 2 6 1 Leg 7 | 2 4 . 1 Wheel . | . . . . Hover . | . . . . Flight . | . . . . Utility 7 | 1 2 1 3 Device 4 | . 1 . 3 Storage 1 | 1 . . . Processor 2 | . 1 1 . Hackware . | . . . . Protection . | . . . . Artifact . | . . . . Weapon 15 | 2 6 4 3 Energy Gun 7 | 2 3 1 1 Energy Cannon . | . . . . Ballistic Gun 3 | . . 2 1 Ballistic Cannon 3 | . 3 . . Launcher 2 | . . 1 1 Special Weapon . | . . . . Impact Weapon . | . . . . Slashing Weapon . | . . . . Piercing Weapon . | . . . . Special Melee Weapon . | . . . . Unidentified Prototypes . | . . . . Parts Lost 25 | . 5 7 13 Power 5 | . 1 1 3 Propulsion 9 | . 1 3 5 Utility 3 | . 1 . 2 Weapon 8 | . 2 3 3 Highest Loss Streak 9 | . 3 5 9 Average Slot Usage (%) 81 | . 92 83 53 Engine 11 | . 13 9 12 Treads 16 | . 3 34 15 Leg 11 | . 22 . 2 Device 5 | . 8 . 6 Storage 11 | . 14 11 5 Processor 4 | . 3 8 2 Energy Gun 5 | . 8 3 1 Ballistic Gun 2 | . . 5 4 Ballistic Cannon 10 | . 17 7 . Launcher 1 | . . 2 1 Naked Turns 20 | . . . 20 Heaviest Build 25 | 12 18 19 25 Greatest Support 86 | 20 46 86 86 Greatest Overweight (x) 4 | . 1 4 1 Average Overweight (x) . | . . . . Largest Inventory Capacity 6 | 6 6 6 6 Average Capacity 5 | 4 6 6 5 Most Carried 6 | 2 6 6 2 Average Carried 4 | . 5 4 1 Final Capacity 6 | 6 6 6 4 Final Carried 6 | 2 6 3 1 Class Distribution -------------------- 93% | Mutant 6% | Scavenger-Mutant Dominant Class ---------------- Mutant | -10/Materials Mutant | -9/Materials Mutant | -8/Materials Resources | -11 -10 -9 -8 ----------- Run | Scr Mat Mat Mat Matter Collected 1245 | 211 398 357 279 Remotely . | . . . . Salvage Created 1384 | . 514 558 312 Parts 101 | . 38 45 18 Haulers Intercepted 1 | . 1 . . Recyclers Shooed 4 | . 1 3 . Parts Field Recycled . | . . . . Retrieved Matter . | . . . . Parts Self-Destructed . | . . . . Prevented . | . . . . Kills | -11 -10 -9 -8 ------- Run | Scr Mat Mat Mat Combat Hostiles Destroyed 36 | . 10 18 8 Guns 7 | . 2 2 3 Cannons 12 | . 8 4 . AOE 17 | . . 12 5 Classes Destroyed 11 | . 7 4 . Worker 4 | . . 4 . Builder 8 | . 4 3 1 Tunneler 1 | . 1 . . Hauler 1 | . 1 . . Recycler 2 | . . 2 . Mechanic 1 | . . 1 . Operator 3 | . 3 . . Watcher 5 | . 1 4 . Swarmer 12 | . 3 7 2 Grunt 19 | . 7 6 6 Sentry 5 | . . 5 . Best Kill Streak 15 | . 4 15 4 Combat Bots Only 10 | . 3 10 4 Max Kills in Single Turn 4 | . 1 4 2 Gunslinging . | . . . . Exploded 2 | . . 2 2 Melee . | . . . . Uniques/NPCs Destroyed . | . . . . Combat | -11 -10 -9 -8 -------- Run | Scr Mat Mat Mat Damage Taken 3524 | . 630 1433 1461 Core 791 | . 82 154 555 Absorbed by Shields . | . . . . Core Remaining (%) 76 | 100 67 61 . Volleys Fired 147 | . 57 58 32 Largest 2 | . 2 2 2 Hottest 94 | . 80 85 94 Shots Fired 232 | . 92 104 36 Gun 126 | . 54 45 27 Cannon 78 | . 38 40 . Launcher 28 | . . 19 9 Special . | . . . . Kinetic 132 | . 38 72 22 Thermal 35 | . 17 13 5 Explosive 28 | . . 19 9 Electromagnetic 37 | . 37 . . Robot Hit Streak 13 | . 9 9 13 Robot Miss Streak 9 | . 3 9 3 Penetration Max . | . . . . Secondary Targets 1 | . . 1 . Max Gunslinging Chain 1 | . . 1 . Shots Hit Robots 143 | . 53 64 26 Core Hits 101 | . 28 49 24 Critical Hits 1 | . . 1 . Critical Kills . | . . . . Critical Parts Destroyed 1 | . . 1 . Melee Attacks . | . . . . Impact . | . . . . Slashing . | . . . . Piercing . | . . . . Sneak Attacks . | . . . . Combat Hostiles . | . . . . Follow-up Attacks . | . . . . Damage Inflicted 4382 | . 955 2615 812 Guns 1217 | . 499 370 348 Cannons 985 | . 410 575 . Explosions 2152 | . 31 1670 451 Melee . | . . . . Ramming 28 | . 15 . 13 Kinetic 1474 | . 410 810 254 Thermal 405 | . 176 135 94 Explosive 2051 | . . 1600 451 Electromagnetic 424 | . 354 70 . Impact . | . . . . Slashing . | . . . . Piercing . | . . . . Highest Corruption . | . . . . Average Corruption . | . . . . Corruption Purged . | . . . . Overload Shots . | . . . . Overflow Damage 124 | . 36 88 . Projectiles 23 | . 18 5 . Explosions 101 | . 18 83 . Melee . | . . . . Knockbacks 7 | . 4 3 . Impact . | . . . . Kinetic 7 | . 4 3 . Secondary . | . . . . Self-Inflicted Damage 142 | . 3 135 4 Shots 5 | . . 5 . Rammed 9 | . 2 . 7 Targets Rammed 14 | . 4 . 10 Kicked 5 | . 2 . 3 Crushed . | . . . . Highest Temperature 222 | . 120 76 222 Average Temperature 36 | . 35 21 79 Received Heat Transfer 1371 | . 297 453 621 Siege Activations . | . . . . Robots Corrupted . | . . . . Combat Hostiles . | . . . . Parts Fried 1 | . 1 . . Impact Corruptions . | . . . . Robots Melted . | . . . . Combat Hostiles . | . . . . Parts Melted . | . . . . Heat Transferred 893 | . 375 333 185 Parts Sabotaged . | . . . . Parts Stolen . | . . . . Parts Stripped . | . . . . Power Chain Reactions 1 | . 1 . . Missiles Intercepted . | . . . . Alert | -11 -10 -9 -8 ------- Run | Scr Mat Mat Mat Peak Influence 554 | . 164 554 302 Average Influence 153 | . 67 257 215 Maximum Alert Level 2 | . . 2 1 Low Security (%) 65 | 100 100 33 33 Level 1 31 | . . 57 66 Level 2 2 | . . 9 . Level 3 . | . . . . Level 4 . | . . . . Level 5 . | . . . . High Security . | . . . . Max Security . | . . . . Squads Dispatched 4 | . 1 2 1 Investigation . | . . . . Extermination . | . . . . Reinforcement 4 | . 1 2 1 Assault . | . . . . Garrison . | . . . . Intercept . | . . . . Construction Impeded 1 | . . 1 . Haulers Reinforced . | . . . . Stealth | -11 -10 -9 -8 --------- Run | Scr Mat Mat Mat Distress Signals 4 | . . 3 1 Communications Jammed . | . . . . Distress Signals . | . . . . Times Spotted 69 | . 23 28 18 Peak Tracking Total 7 | . 4 7 6 Tactical Retreats 10 | . 5 1 4 Traps | -11 -10 -9 -8 ------- Run | Scr Mat Mat Mat Traps Triggered 2 | . 1 1 . Indirectly . | . . . . Trap Hack Attempts . | . . . . Triggered . | . . . . Disarmed . | . . . . Reprogrammed . | . . . . Reused . | . . . . Traps Extracted . | . . . . Installed . | . . . . Triggered . | . . . . Machines | -11 -10 -9 -8 ---------- Run | Scr Mat Mat Mat Machines Disabled 7 | . 1 4 2 Max in Single Turn 1 | . 1 1 1 Machines Sabotaged . | . . . . Garrisons Compromised . | . . . . Overloaded Fab Kills . | . . . . Fab Network Shutdowns . | . . . . Hacking | -11 -10 -9 -8 --------- Run | Scr Mat Mat Mat Machines Accessed . | . . . . Terminals . | . . . . Fabricators . | . . . . Repair Stations . | . . . . Recycling Units . | . . . . Scanalyzers . | . . . . Garrison Access . | . . . . Total Hacks . | . . . . Successful . | . . . . Failed . | . . . . Catastrophic . | . . . . Database Lockouts . | . . . . Manual . | . . . . Terminals . | . . . . Fabricators . | . . . . Repair Stations . | . . . . Recycling Units . | . . . . Scanalyzers . | . . . . Garrison Access . | . . . . Terminal Hacks . | . . . . Fabricator Hacks . | . . . . Repair Station Hacks . | . . . . Recycling Unit Hacks . | . . . . Scanalyzer . | . . . . Garrison Access Hacks . | . . . . Unauthorized Hacks . | . . . . Terminals . | . . . . Fabricators . | . . . . Repair Stations . | . . . . Recycling Units . | . . . . Scanalyzers . | . . . . Garrison Access . | . . . . Data Cores Recovered 2 | . 2 . . Used . | . . . . Hacking Detections . | . . . . Full Trace Events . | . . . . Feedback Events . | . . . . Feedback Blocked . | . . . . Robot Schematics Acquired . | . . . . Robots Built . | . . . . Matter . | . . . . Time . | . . . . Total Robot Build Rating . | . . . . Part Schematics Acquired . | . . . . Parts Built . | . . . . Matter . | . . . . Time . | . . . . Total Part Build Rating . | . . . . Parts Repaired . | . . . . Time . | . . . . Parts Recycled . | . . . . Recycled Matter . | . . . . Retrieved Matter . | . . . . Retrieved Components . | . . . . Parts Scanalyzed . | . . . . Part Schematics Acquired . | . . . . Parts Damaged . | . . . . Bothacking | -11 -10 -9 -8 ------------ Run | Scr Mat Mat Mat Used RIF Installer . | . . . . Robots Hacked . | . . . . Non-combat . | . . . . Combat . | . . . . Robot Hacks Applied . | . . . . Relay Couplers Released . | . . . . Robots Rewired . | . . . . Allies Hacked . | . . . . Hacks Repelled . | . . . . Allies | -11 -10 -9 -8 -------- Run | Scr Mat Mat Mat Total Allies . | . . . . Largest Group . | . . . . Highest-Rated Group . | . . . . Highest-Rated Ally . | . . . . Total Orders . | . . . . Ally Attacks . | . . . . Total Damage . | . . . . Kills . | . . . . Allies Corrupted . | . . . . Allies Melted . | . . . . Intel | -11 -10 -9 -8 ------- Run | Scr Mat Mat Mat Robot Analysis Total . | . . . . Derelict Logs Recovered . | . . . . Drone Launches . | . . . . Drone Recoveries . | . . . . Exploration | -11 -10 -9 -8 ------------- Run | Scr Mat Mat Mat Turns Passed 1934 | 73 877 620 364 Spaces Moved 1052 | 56 510 274 212 Core 59 | 7 . 5 47 Treads 454 | . 68 269 117 Legs 539 | 49 442 . 48 Wheels . | . . . . Hover . | . . . . Flight . | . . . . Fastest Speed 50 | 50 120 160 50 Average Speed 135 | 111 127 161 126 Slowest Speed 250 | 120 160 250 160 Overloaded Moves . | . . . . Propulsion Burnouts . | . . . . Robots Hopped . | . . . . Cave-ins Triggered . | . . . . Exploration Rate (%) 28 | 4 63 28 17 Regions Visited 3 Branch Regions . Pre-discovered Areas . | . . . . Known Exits Taken 1 | . . 1 . Unknown Exits Taken 2 | 1 1 . . Scrap Searched . | . . . . Spaces Dug . | . . . . Terrain Destroyed 146 | . 7 100 39 Melee . | . . . . Projectile 3 | . 2 1 . AOE 143 | . 5 99 39 Actions | -11 -10 -9 -8 --------- Run | Scr Mat Mat Mat Total 1318 | 63 642 345 268 Wait 48 | . 46 . 2 Move 1049 | 55 509 273 212 Hop . | . . . . Pick Up 7 | 2 5 . . Fast Attach 33 | 6 10 8 9 Attach 5 | . . 3 2 Detach 1 | . . . 1 Swap 7 | . 5 2 . Drop 7 | . 6 1 . Fire 147 | . 57 58 32 Melee . | . . . . Ram 2 | . . . 2 Kick 9 | . 4 . 5 Crush 3 | . . . 3 Escape Stasis . | . . . . Rewire . | . . . . Trap . | . . . . Miscellaneous . | . . . . Route ------- -11/Scrapyard -10/Materials (discovered 2 exits: [*Mat x2]) -9/Materials -8/Materials History --------- Turn | Location | Event 2 | -11/Scrapyard | Discovered new exit (range 16) 74 | -11/Scrapyard | Entered Materials 299 | -10/Materials | Discovered new exit (range 15) 312 | -10/Materials | Build established: Mutant 448 | -10/Materials | Lost 3 parts (1p1n1w) 813 | -10/Materials | Discovered new exit (range 16) 951 | -10/Materials | Entered another Materials area 951 | -9/Materials | Evolved 2 slots: Propulsion x2 1244 | -9/Materials | Lost 5 parts (3n2w) 1346 | -9/Materials | Destroyed 10 combat bots 1472 | -9/Materials | Discovered new exit (range 16) 1567 | -9/Materials | Identified exit to Materials 1571 | -9/Materials | Entered another Materials area 1571 | -8/Materials | Evolved 2 slots: Power x2 1827 | -8/Materials | Lost 9 parts (3p2n2u2w) 1836 | -8/Materials | Core integrity fell below 50% 1899 | -8/Materials | Core integrity fell below 20% 1935 | -8/Materials | Destroyed by Y-45 Defender with Heavy Assault Rifle Last Messages --------------- 01854_ U-05 Engineer builds a Wall. 01855_ Acquired Carbon-fiber Leg. 01857_ Acquired 47 matter. 01858_ Acquired 56 matter. 01859_ U-05 Engineer lays Concrete. 01862_ Acquired Lgt. Angular Momentum Engine. 01862_ U-05 Engineer lays Concrete. 01863_ G-47 Trooper destroyed. 01863_ U-05 Engineer destroyed. 01871_ The unstable cave ceiling collapses. 01871_ Processing Tank disabled. 01872_ The unstable cave ceiling collapses. 01873_ Destroyed Beam Rifle. 01874_ Mni. Grenade Launcher destroyed. 01890_ Adv. Treads destroyed. 01906_ Acquired 14 matter. 01918_ Acquired Imp. ECM Suite. 01927_ Slammed into G-47 Trooper. 01928_ Kicked G-47 Trooper out of the way. 01932_ Slammed into G-47 Trooper. Map ----- +----------------------------------------------------+ | ?????????????????????????????????????????????????? | | ?????????????????????????????????????????????????? | | ?????????????????????????????????????????????????? | | ?????????????????????????????????????????????????? | | ?????????????????????????????????????????????????? | | ?????????????????????????????????????????????????? | | ?????????????????????????????? ?????????????????? | | ????????????????????????????? ?????????????????? | | ????????????????????????????? ?????????????????? | | ######??????????????????????? #????????????????? | | #????????????????? ???? #????????????????? | | " #???????????????? ??" "????????????????? | | " #?###+#### "???" "??"" T????????????????? | | " # ""?"" """"" "????????????????? | | " # """"" """" #????????????????? | | " + """ """ #????????????????? | | # ########?????????? | | ^ ! # #?######### | | ########## """"" """ # #?# | | #?????????# """"" """"" # #?# | | #?????????# """"" """"" # #?# | | #?????????# """"" # ??# """ | | ##?????????+ """ # ????# """"" | | #???????????# ##+####### """"" | | ????????????# [ = + """"" | | #?????????????# @######## ####### """ | | #??????????????# g# """ ## ##????# | | #??????????????# Y + """ # ##########+### | | ################ ######g# """ # | | # # # # ######### | | #################### + # #####???????# | | ???????????????????# ### ! #???????????###### | | ???????????????????# #?# ! #????????????????? | | ???????????????????# #?#######????????????????? | | ???????????????????######????????????????????????? | | ?????????????????????????????????????????????????? | | | | | | | | | | | | | | | | | | | | | | | | | | | | | +----------------------------------------------------+ Best States ------------- Heat Dissipation 45 Energy Generation 24 Energy Capacity 290 Matter Stores 300 Matter Capacity 300 Sight Range 16 Terrain Scan Range 14 Terrain Scan Density 10 ECM Strength 2 Base Temperature (-) 100 Evasion (%) 50 Targeting Accuracy 5 Recoil Reduction 4 Item Schematics ----------------- None Robot Schematics ------------------ None Fabricated ------------ Nothing Alien Tech Used ----------------- None Achievements -------------- None Challenges ------------ None Game ------ Seed ComponentXenonSplitter Manual? 0 Play Time 00:18:36 Cumulative 14.4 hours Start 2019.11.12 @ 21:20:33 End 2019.11.12 @ 21:35:53 Sessions 1 Manual Loads 0 Difficulty Rogue Special Mode None Game No. 40 Rogue 40 Adventurer 0 Explorer 0 Win Type - Total 0 Types 0/0/0/0/0/0/0 Lore% 7 Gallery% 18 Achievement% 12 Wizard Run 0 Options --------- ASCII 0 Keyboard 1 Movement Numpad Keybinds 0 Fullscreen 1 Font 18/SmallcapsGlow Map View 76x50 Tactical HUD 1 Map Filters NONE Filters NONE Steam 1 RUN: 4b245a4d-49e3-41f2-9382-666e25cb5251